[Event "FIDE World Junior U20-ch Girls 2025"]
[Site "Petrovac"]
[Date "2025.03.02"]
[Round "6.14"]
[White "Zeliantsova, Kseniya"]
[Black "Savitha Shri B"]
[Result "1/2-1/2"]
[Annotator "ChessBase"]
[ECO "B30"]
[WhiteElo "1999"]
[BlackElo "2332"]
[PlyCount "107"]
[EventDate "2025.02.23"]
[EventType "swiss"]
[EventCountry "MNE"]
[SourceTitle "playchess.com"]
[Source "ChessBase"]
[SourceQuality "1"]
[TimeControl "40/5400+30:1800+30"]

1. e4 {[%emt 0:00:01]} c5 {[%emt 0:01:00]} 2. Nf3 {[%emt 0:00:16]} Nc6 {[%emt 0:00:25]} 3. Bb5 {[%emt 0:00:10]} e6 {[%emt 0:00:58]} 4. O-O {[%emt 0:00:11]} Nge7 {[%emt 0:00:12]} 5. c3 {[%emt 0:00:35]} d5 {[%emt 0:01:19]} 6. exd5 {[%emt 0:01:50]} Qxd5 {[%emt 0:01:00]} 7. c4 {[%emt 0:03:31]} Qd8 {[%emt 0:07:37]} 8. d4 {[%emt 0:02:13]} cxd4 {[%emt 0:01:07]} 9. Nxd4 {[%emt 0:00:33]} Bd7 {[%emt 0:00:06]} 10. Nc3 {[%emt 0:05:58]} Qc7 {[%emt 0:01:37]} 11. Re1 {[%emt 0:03:23]} a6 {[%emt 0:08:33]} 12. Bxc6 {[%emt 0:07:24]} Bxc6 {[%emt 0:06:18]} 13. Qh5 {[%emt 0:06:41]} O-O-O {[%emt 0:10:24]} 14. Be3 {[%emt 0:06:21]} g6 {[%emt 0:03:23]} 15. Qh3 {[%emt 0:07:16]} Bd7 {[%emt 0:08:38]} 16. Qf3 {[%emt 0:08:04]} Nf5 {[%emt 0:00:56]} 17. Rac1 {[%emt 0:08:09]} Nxe3 {[%emt 0:00:58]} 18. fxe3 {[%emt 0:00:15]} f5 {[%emt 0:13:42]} 19. c5 {[%emt 0:08:05]} Bc6 {[%emt 0:03:58]} 20. Qe2 {[%emt 0:03:48]} Re8 {[%emt 0:00:07]} 21. b4 {[%emt 0:00:43]} e5 {[%emt 0:04:40]} 22. Nxc6 {[%emt 0:02:30]} Qxc6 {[%emt 0:00:03]} 23. Red1 {[%emt 0:04:50]} Kb8 {[%emt 0:07:54]} 24. Rd5 {[%emt 0:02:25]} Rc8 {[%emt 0:00:25]} 25. a4 {[%emt 0:01:42]} Qe6 {[%emt 0:00:57]} 26. a5 {[%emt 0:03:17]} Be7 {[%emt 0:00:40]} 27. e4 {[%emt 0:00:36]} Rhf8 {[%emt 0:01:53]} 28. Na4 {[%emt 0:02:14]} fxe4 {[%emt 0:07:50]} 29. Nb6 {[%emt 0:00:36]} Rcd8 {[%emt 0:03:24]} 30. c6 {[%emt 0:03:54]} Rxd5 {[%emt 0:01:56]} 31. c7+ {[%emt 0:00:17]} Ka7 {[%emt 0:00:00]} 32. Qe3 {[%emt 0:02:37]} Bc5 {[%emt 0:00:24]} 33. bxc5 {[%emt 0:00:05]} Rd3 {[%emt 0:02:18]} 34. Qxe4 {[%emt 0:01:09]} Rd4 {[%emt 0:00:12]} 35. Qe3 {[%emt 0:00:42]} Qc6 {[%emt 0:00:35]} 36. c8=Q {[%emt 0:00:41]} Rxc8 {[%emt 0:00:02]} 37. Nxc8+ {[%emt 0:00:06]} Qxc8 {[%emt 0:00:02]} 38. c6 {[%emt 0:01:49]} bxc6 {[%emt 0:00:10]} 39. Qxe5 {[%emt 0:00:04]} Qd7 {[%emt 0:02:43]} 40. Qc5+ {[%emt 0:02:59]} Ka8 {[%emt 0:00:01]} 41. Qxc6+ {[%emt 0:03:56]} Qxc6 {[%emt 0:00:09]} 42. Rxc6 {[%emt 0:00:01]} Kb7 {[%emt 0:00:06]} 43. Rb6+ {[%emt 0:00:07]} Ka7 {[%emt 0:00:02]} 44. Re6 {[%emt 0:00:24]} Rd5 {[%emt 0:00:07]} 45. Re7+ {[%emt 0:00:27]} Kb8 {[%emt 0:00:03]} 46. Rxh7 {[%emt 0:00:31]} Rxa5 {[%emt 0:00:05]} 47. Kf2 {[%emt 0:00:28]} Rb5 {[%emt 0:09:43]} 48. Rg7 {[%emt 0:05:03]} Rb6 {[%emt 0:00:15]} 49. Ke3 {[%emt 0:00:35]} a5 {[%emt 0:02:14]} 50. Kd4 {[%emt 0:00:55]} a4 {[%emt 0:02:12]} 51. Kc5 {[%emt 0:01:03]} Rb2 {[%emt 0:00:45]} 52. Rxg6 {[%emt 0:00:54]} a3 {[%emt 0:00:06]} 53. Ra6 {[%emt 0:00:41]} Rxg2 {[%emt 0:00:11]} 54. Rxa3 {[%emt 0:00:04]} 1/2-1/2

[Event "FIDE World Junior U20-ch Girls 2025"]
[Site "Petrovac"]
[Date "2025.03.02"]
[Round "6.15"]
[White "Djerroud, Chahrazed"]
[Black "Kurmangaliyeva, Liya"]
[Result "0-1"]
[Annotator "ChessBase"]
[ECO "B62"]
[WhiteElo "1914"]
[BlackElo "2251"]
[PlyCount "66"]
[EventDate "2025.02.23"]
[EventType "swiss"]
[EventCountry "MNE"]
[SourceTitle "playchess.com"]
[Source "ChessBase"]
[SourceQuality "1"]
[TimeControl "40/5400+30:1800+30"]

1. e4 {[%emt 0:00:04]} c5 {[%emt 0:00:17]} 2. Nf3 {[%emt 0:00:08]} Nc6 {[%emt 0:00:11]} 3. d4 {[%emt 0:00:06]} cxd4 {[%emt 0:00:07]} 4. Nxd4 {[%emt 0:00:04]} Nf6 {[%emt 0:00:16]} 5. Nc3 {[%emt 0:00:06]} d6 {[%emt 0:00:10]} 6. Bg5 {[%emt 0:00:11]} e6 {[%emt 0:00:32]} 7. Bb5 {[%emt 0:00:07]} Qb6 {[%emt 0:03:25]} 8. O-O {[%emt 0:13:31]} a6 {[%emt 0:06:12]} 9. Bxc6+ {[%emt 0:04:47]} bxc6 {[%emt 0:00:20]} 10. e5 {[%emt 0:04:26]} dxe5 {[%emt 0:04:25]} 11. Nf3 {[%emt 0:01:32]} Nd7 {[%emt 0:04:08]} 12. Ne4 {[%emt 0:08:07]} Qc7 {[%emt 0:02:29]} 13. Bd2 {[%emt 0:01:32]} Be7 {[%emt 0:02:21]} 14. c4 {[%emt 0:01:51]} O-O {[%emt 0:02:32]} 15. Bc3 {[%emt 0:02:20]} c5 {[%emt 0:03:08]} 16. Qe2 {[%emt 0:01:49]} f6 {[%emt 0:04:00]} 17. Rfd1 {[%emt 0:02:17]} Bb7 {[%emt 0:01:12]} 18. Rd2 {[%emt 0:00:30]} Bc6 {[%emt 0:29:01]} 19. Rad1 {[%emt 0:01:56]} Rad8 {[%emt 0:01:10]} 20. h3 {[%emt 0:03:04]} Qb7 {[%emt 0:07:48]} 21. Nd6 {[%emt 0:04:51]} Qb6 {[%emt 0:00:41]} 22. Ne4 {[%emt 0:01:36]} Qc7 {[%emt 0:05:29]} 23. Ne1 {[%emt 0:02:10]} f5 {[%emt 0:01:26]} 24. Ng3 {[%emt 0:02:48]} e4 {[%emt 0:01:13]} 25. Nf1 {[%emt 0:01:55]} Bg5 {[%emt 0:03:37]} 26. Rd6 {[%emt 0:02:07]} Rde8 {[%emt 0:00:08]} 27. g3 {[%emt 0:00:57]} Bf6 {[%emt 0:02:28]} 28. Bxf6 {[%emt 0:00:49]} Rxf6 {[%emt 0:00:03]} 29. Ne3 {[%emt 0:00:47]} Ne5 {[%emt 0:00:34]} 30. b3 {[%emt 0:00:53]} Ref8 {[%emt 0:04:42]} 31. R6d2 {[%emt 0:05:03]} f4 {[%emt 0:00:42]} 32. Ng4 {[%emt 0:01:14]} Nxg4 {[%emt 0:00:14]} 33. Qxg4 {[%emt 0:00:59]} fxg3 {[%emt 0:00:33]} 0-1

[Event "FIDE World Junior U20-ch Girls 2025"]
[Site "Petrovac"]
[Date "2025.03.02"]
[Round "6.16"]
[White "Kaldarova, Ayaulym"]
[Black "Smietanska, Wiktoria"]
[Result "1-0"]
[Annotator "ChessBase"]
[ECO "D78"]
[WhiteElo "2248"]
[BlackElo "2170"]
[PlyCount "99"]
[EventDate "2025.02.23"]
[EventType "swiss"]
[EventCountry "MNE"]
[SourceTitle "playchess.com"]
[Source "ChessBase"]
[SourceQuality "1"]
[TimeControl "40/5400+30:1800+30"]

1. Nf3 {[%emt 0:00:12]} d5 {[%emt 0:00:10]} 2. g3 {[%emt 0:00:13]} g6 {[%emt 0:00:10]} 3. Bg2 {[%emt 0:00:43]} Bg7 {[%emt 0:00:21]} 4. d4 {[%emt 0:00:17]} Nf6 {[%emt 0:00:15]} 5. O-O {[%emt 0:00:36]} O-O {[%emt 0:00:09]} 6. c4 {[%emt 0:01:47]} c6 {[%emt 0:00:18]} 7. a4 {[%emt 0:00:51]} Re8 {[%emt 0:07:55]} 8. Nc3 {[%emt 0:06:56]} Nbd7 {[%emt 0:12:36]} 9. cxd5 {[%emt 0:08:30]} Nxd5 {[%emt 0:05:23]} 10. a5 {[%emt 0:22:36]} N7f6 {[%emt 0:20:14]} 11. Ne5 {[%emt 0:08:39]} Ng4 {[%emt 0:10:01]} 12. Nc4 {[%emt 0:15:58]} Be6 {[%emt 0:03:35]} 13. Ne3 {[%emt 0:11:52]} Ndxe3 {[%emt 0:04:14]} 14. fxe3 {[%emt 0:00:05]} Qc7 {[%emt 0:02:19]} 15. a6 {[%emt 0:00:55]} b5 {[%emt 0:04:09]} 16. Bd2 {[%emt 0:00:56]} Bh6 {[%emt 0:03:12]} 17. Qc1 {[%emt 0:00:31]} Qb6 {[%emt 0:05:17]} 18. Ne4 {[%emt 0:02:28]} Bd5 {[%emt 0:12:45]} 19. Nc5 {[%emt 0:01:20]} Bxg2 {[%emt 0:02:57]} 20. Kxg2 {[%emt 0:00:04]} Qc7 {[%emt 0:00:44]} 21. e4 {[%emt 0:03:01]} Bg7 {[%emt 0:01:03]} 22. e5 {[%emt 0:01:19]} e6 {[%emt 0:02:44]} 23. h3 {[%emt 0:00:49]} Nxe5 {[%emt 0:00:45]} 24. Bf4 {[%emt 0:01:33]} Rad8 {[%emt 0:00:24]} 25. dxe5 {[%emt 0:00:56]} Bxe5 {[%emt 0:00:12]} 26. Qe3 {[%emt 0:00:34]} Bxf4 {[%emt 0:00:31]} 27. Rxf4 {[%emt 0:00:05]} f5 {[%emt 0:00:58]} 28. Rd4 {[%emt 0:01:38]} Rd5 {[%emt 0:00:35]} 29. Rxd5 {[%emt 0:02:15]} cxd5 {[%emt 0:00:03]} 30. b4 {[%emt 0:00:11]} e5 {[%emt 0:00:42]} 31. Rd1 {[%emt 0:00:49]} Qc6 {[%emt 0:00:15]} 32. Qf3 {[%emt 0:00:22]} Rd8 {[%emt 0:00:39]} 33. Kh2 {[%emt 0:00:10]} Kg7 {[%emt 0:00:44]} 34. Qe3 {[%emt 0:00:32]} Re8 {[%emt 0:00:39]} 35. Qb3 {[%emt 0:00:40]} Rd8 {[%emt 0:00:30]} 36. Qc3 {[%emt 0:02:16]} Re8 {[%emt 0:00:26]} 37. Ne4 {[%emt 0:00:34]} Qd7 {[%emt 0:00:31]} 38. Ng5 {[%emt 0:01:02]} Kf6 {[%emt 0:00:32]} 39. Nf3 {[%emt 0:00:32]} Re6 {[%emt 0:00:31]} 40. Qc5 {[%emt 0:01:39]} Rd6 {[%emt 0:00:21]} 41. Rc1 {[%emt 0:31:59]} h5 {[%emt 0:05:56]} 42. Rc2 {[%emt 0:00:00]} Qe7 {[%emt 0:05:42]} 43. Qxb5 {[%emt 0:00:00]} e4 {[%emt 0:01:58]} 44. Nd4 {[%emt 0:00:00]} h4 {[%emt 0:00:54]} 45. Qb8 {[%emt 0:00:00]} hxg3+ {[%emt 0:03:07]} 46. Kg2 {[%emt 0:00:00]} Rxa6 {[%emt 0:02:32]} 47. b5 {[%emt 0:00:00]} Rd6 {[%emt 0:04:18]} 48. Rc6 {[%emt 0:00:00]} Ke5 {[%emt 0:02:53]} 49. e3 {[%emt 0:00:00]} g5 {[%emt 0:01:54]} 50. Qh8+ {[%emt 0:00:00]} 1-0

[Event "FIDE World Junior U20-ch Girls 2025"]
[Site "Petrovac"]
[Date "2025.03.02"]
[Round "6.17"]
[White "Orian, Noga"]
[Black "Shokirjonova, Barchinoy"]
[Result "1-0"]
[Annotator "ChessBase"]
[ECO "D12"]
[WhiteElo "2210"]
[BlackElo "2061"]
[PlyCount "67"]
[EventDate "2025.02.23"]
[EventType "swiss"]
[EventCountry "MNE"]
[SourceTitle "playchess.com"]
[Source "ChessBase"]
[SourceQuality "1"]
[TimeControl "40/5400+30:1800+30"]

1. d4 {[%emt 0:00:56]} d5 {[%emt 0:00:34]} 2. c4 {[%emt 0:00:20]} c6 {[%emt 0:00:07]} 3. Nf3 {[%emt 0:00:19]} Nf6 {[%emt 0:00:20]} 4. e3 {[%emt 0:00:17]} Bf5 {[%emt 0:00:14]} 5. Nc3 {[%emt 0:00:16]} e6 {[%emt 0:00:06]} 6. Nh4 {[%emt 0:00:21]} Be4 {[%emt 0:00:34]} 7. f3 {[%emt 0:00:17]} Bg6 {[%emt 0:00:06]} 8. Bd2 {[%emt 0:00:04]} Be7 {[%emt 0:00:23]} 9. Nxg6 {[%emt 0:00:17]} hxg6 {[%emt 0:00:07]} 10. Qb3 {[%emt 0:00:05]} Qc7 {[%emt 0:00:15]} 11. cxd5 {[%emt 0:00:33]} Nxd5 {[%emt 0:01:57]} 12. Nxd5 {[%emt 0:02:23]} cxd5 {[%emt 0:11:25]} 13. g3 {[%emt 0:09:03]} Nc6 {[%emt 0:09:57]} 14. Kf2 {[%emt 0:01:10]} O-O {[%emt 0:08:34]} 15. Rc1 {[%emt 0:10:28]} Bf6 {[%emt 0:08:03]} 16. Bb5 {[%emt 0:04:59]} Rfc8 {[%emt 0:11:14]} 17. Rc2 {[%emt 0:09:32]} e5 {[%emt 0:10:34]} 18. dxe5 {[%emt 0:06:56]} Qxe5 {[%emt 0:01:04]} 19. Rhc1 {[%emt 0:04:27]} Qe6 {[%emt 0:07:46]} 20. Qa4 {[%emt 0:12:44]} Ne5 {[%emt 0:10:30]} 21. Rxc8+ {[%emt 0:00:40]} Rxc8 {[%emt 0:00:02]} 22. Bd7 {[%emt 0:00:48]} Rc4 {[%emt 0:11:01]} 23. Rxc4 {[%emt 0:01:17]} Nxd7 {[%emt 0:00:08]} 24. Rc8+ {[%emt 0:12:59]} Kh7 {[%emt 0:00:28]} 25. Qg4 {[%emt 0:00:29]} Qxg4 {[%emt 0:00:43]} 26. fxg4 {[%emt 0:00:01]} Bxb2 {[%emt 0:00:16]} 27. Rc7 {[%emt 0:00:14]} Ne5 {[%emt 0:03:56]} 28. Rxb7 {[%emt 0:00:02]} Nc4 {[%emt 0:00:10]} 29. Ke2 {[%emt 0:00:09]} a5 {[%emt 0:00:59]} 30. Bxa5 {[%emt 0:00:26]} Bc1 {[%emt 0:00:51]} 31. Bb6 {[%emt 0:00:12]} Ba3 {[%emt 0:00:41]} 32. Bd4 {[%emt 0:00:30]} Nd6 {[%emt 0:00:17]} 33. Ra7 {[%emt 0:00:35]} Bb4 {[%emt 0:01:36]} 34. a3 {[%emt 0:00:14]} 1-0

[Event "FIDE World Junior U20-ch Girls 2025"]
[Site "Petrovac"]
[Date "2025.03.02"]
[Round "6.18"]
[White "Pipiras, Filipa Fortuna"]
[Black "Blokhin, Sofia"]
[Result "1-0"]
[Annotator "ChessBase"]
[ECO "A80"]
[WhiteElo "2200"]
[BlackElo "2020"]
[PlyCount "107"]
[EventDate "2025.02.23"]
[EventType "swiss"]
[EventCountry "MNE"]
[SourceTitle "playchess.com"]
[Source "ChessBase"]
[SourceQuality "1"]
[TimeControl "40/5400+30:1800+30"]

1. d4 {[%emt 0:03:16]} f5 {[%emt 0:00:06]} 2. Bg5 {[%emt 0:00:12]} h6 {[%emt 0:00:07]} 3. Bh4 {[%emt 0:00:08]} g5 {[%emt 0:00:06]} 4. e3 {[%emt 0:00:16]} Nf6 {[%emt 0:00:07]} 5. Bg3 {[%emt 0:00:07]} d6 {[%emt 0:00:09]} 6. Nc3 {[%emt 0:00:30]} e6 {[%emt 0:00:26]} 7. h4 {[%emt 0:01:19]} Rg8 {[%emt 0:00:40]} 8. hxg5 {[%emt 0:01:34]} hxg5 {[%emt 0:00:08]} 9. Qd2 {[%emt 0:03:39]} Nc6 {[%emt 0:07:21]} 10. O-O-O {[%emt 0:01:09]} d5 {[%emt 0:04:33]} 11. f3 {[%emt 0:06:03]} Bb4 {[%emt 0:09:03]} 12. Nge2 {[%emt 0:02:45]} Qe7 {[%emt 0:08:33]} 13. Qd3 {[%emt 0:09:08]} Ba5 {[%emt 0:07:10]} 14. a3 {[%emt 0:07:51]} Bd7 {[%emt 0:02:44]} 15. e4 {[%emt 0:03:46]} O-O-O {[%emt 0:03:50]} 16. e5 {[%emt 0:02:59]} Nh7 {[%emt 0:05:55]} 17. Kb1 {[%emt 0:05:25]} Rg7 {[%emt 0:04:06]} 18. Be1 {[%emt 0:05:38]} Rdg8 {[%emt 0:06:11]} 19. g4 {[%emt 0:12:53]} fxg4 {[%emt 0:02:42]} 20. fxg4 {[%emt 0:00:09]} Nf8 {[%emt 0:03:25]} 21. Ng3 {[%emt 0:03:56]} Ng6 {[%emt 0:04:14]} 22. Nh5 {[%emt 0:03:44]} Rf7 {[%emt 0:01:31]} 23. Bd2 {[%emt 0:02:49]} Ngxe5 {[%emt 0:12:37]} 24. dxe5 {[%emt 0:00:52]} Nxe5 {[%emt 0:00:06]} 25. Qg3 {[%emt 0:06:10]} Nf3 {[%emt 0:04:04]} 26. Bg2 {[%emt 0:00:59]} Nxd2+ {[%emt 0:00:33]} 27. Rxd2 {[%emt 0:00:07]} c6 {[%emt 0:01:26]} 28. Rdd1 {[%emt 0:11:10]} Bc7 {[%emt 0:00:45]} 29. Qe3 {[%emt 0:02:06]} Bb6 {[%emt 0:00:43]} 30. Qe5 {[%emt 0:01:51]} Bc7 {[%emt 0:00:19]} 31. Qe2 {[%emt 0:00:11]} Rgf8 {[%emt 0:01:47]} 32. Rhf1 {[%emt 0:00:34]} Rxf1 {[%emt 0:01:14]} 33. Rxf1 {[%emt 0:00:09]} e5 {[%emt 0:01:00]} 34. Ng3 {[%emt 0:00:40]} Rxf1+ {[%emt 0:02:14]} 35. Nxf1 {[%emt 0:00:21]} e4 {[%emt 0:01:38]} 36. Nd1 {[%emt 0:00:19]} Qf6 {[%emt 0:01:10]} 37. Nfe3 {[%emt 0:01:40]} Bg3 {[%emt 0:01:36]} 38. c4 {[%emt 0:02:01]} Be6 {[%emt 0:01:13]} 39. cxd5 {[%emt 0:00:32]} cxd5 {[%emt 0:00:27]} 40. Qb5 {[%emt 0:00:36]} Qf7 {[%emt 0:02:08]} 41. Nc3 {[%emt 0:05:56]} Qd7 {[%emt 0:16:29]} 42. Qxd7+ {[%emt 0:04:55]} Kxd7 {[%emt 0:00:29]} 43. Nexd5 {[%emt 0:01:00]} Be5 {[%emt 0:02:18]} 44. Ne3 {[%emt 0:00:56]} Bf4 {[%emt 0:02:11]} 45. Nf5 {[%emt 0:00:38]} b6 {[%emt 0:00:50]} 46. Bxe4 {[%emt 0:00:19]} Bc4 {[%emt 0:00:30]} 47. Kc2 {[%emt 0:00:47]} Ke6 {[%emt 0:00:40]} 48. Bd3 {[%emt 0:04:54]} Bxd3+ {[%emt 0:00:49]} 49. Kxd3 {[%emt 0:00:06]} Bc1 {[%emt 0:01:03]} 50. Kc2 {[%emt 0:00:06]} Bf4 {[%emt 0:00:10]} 51. b4 {[%emt 0:05:28]} Ke5 {[%emt 0:02:11]} 52. Kd3 {[%emt 0:00:42]} Bc1 {[%emt 0:00:31]} 53. Ne3 {[%emt 0:00:19]} a6 {[%emt 0:05:29]} 54. Ne2 {[%emt 0:00:50]} 1-0

[Event "FIDE World Junior U20-ch Girls 2025"]
[Site "Petrovac"]
[Date "2025.03.02"]
[Round "6.19"]
[White "Shohradova, Leyla"]
[Black "Karimova, Guldona"]
[Result "0-1"]
[Annotator "ChessBase"]
[ECO "E17"]
[WhiteElo "1986"]
[BlackElo "2200"]
[PlyCount "86"]
[EventDate "2025.02.23"]
[EventType "swiss"]
[EventCountry "MNE"]
[SourceTitle "playchess.com"]
[Source "ChessBase"]
[SourceQuality "1"]
[TimeControl "40/5400+30:1800+30"]

1. d4 {[%emt 0:00:03]} Nf6 {[%emt 0:00:07]} 2. c4 {[%emt 0:00:03]} e6 {[%emt 0:00:07]} 3. Nf3 {[%emt 0:00:04]} b6 {[%emt 0:00:11]} 4. g3 {[%emt 0:00:04]} Bb7 {[%emt 0:00:05]} 5. Bg2 {[%emt 0:00:07]} Be7 {[%emt 0:00:07]} 6. O-O {[%emt 0:00:06]} O-O {[%emt 0:00:05]} 7. Re1 {[%emt 0:00:04]} d6 {[%emt 0:05:00]} 8. Nc3 {[%emt 0:05:21]} Ne4 {[%emt 0:02:11]} 9. Qc2 {[%emt 0:01:01]} Nxc3 {[%emt 0:00:32]} 10. Ng5 {[%emt 0:05:44]} Bxg5 {[%emt 0:21:27]} 11. Bxb7 {[%emt 0:00:55]} Nd7 {[%emt 0:10:19]} 12. Bxa8 {[%emt 0:03:06]} Qxa8 {[%emt 0:00:17]} 13. Qxc3 {[%emt 0:02:05]} Bf6 {[%emt 0:00:36]} 14. Qd3 {[%emt 0:03:26]} e5 {[%emt 0:02:19]} 15. dxe5 {[%emt 0:02:21]} Nxe5 {[%emt 0:00:16]} 16. Qc2 {[%emt 0:01:56]} Qc6 {[%emt 0:04:27]} 17. Bf4 {[%emt 0:00:52]} Ng6 {[%emt 0:01:07]} 18. Bd2 {[%emt 0:04:52]} d5 {[%emt 0:01:21]} 19. Rac1 {[%emt 0:07:25]} d4 {[%emt 0:02:08]} 20. Qf5 {[%emt 0:09:25]} Ne5 {[%emt 0:02:17]} 21. Qh3 {[%emt 0:16:18]} Rd8 {[%emt 0:11:56]} 22. Qg2 {[%emt 0:03:43]} Qd7 {[%emt 0:07:26]} 23. c5 {[%emt 0:08:47]} b5 {[%emt 0:13:13]} 24. c6 {[%emt 0:04:28]} Qc8 {[%emt 0:02:11]} 25. b3 {[%emt 0:02:05]} d3 {[%emt 0:04:57]} 26. Qe4 {[%emt 0:03:39]} h5 {[%emt 0:01:06]} 27. f4 {[%emt 0:10:13]} Ng4 {[%emt 0:03:34]} 28. e3 {[%emt 0:01:06]} Bb2 {[%emt 0:03:33]} 29. Rc5 {[%emt 0:01:03]} Nf6 {[%emt 0:00:12]} 30. Qg2 {[%emt 0:01:17]} Qa6 {[%emt 0:00:53]} 31. Bc3 {[%emt 0:03:33]} Bxc3 {[%emt 0:01:22]} 32. Rxc3 {[%emt 0:00:01]} Qa5 {[%emt 0:00:29]} 33. Qb2 {[%emt 0:00:56]} Ne4 {[%emt 0:00:28]} 34. b4 {[%emt 0:00:05]} Qb6 {[%emt 0:00:34]} 35. Rb3 {[%emt 0:00:22]} Qxc6 {[%emt 0:00:15]} 36. Rd1 {[%emt 0:00:49]} d2 {[%emt 0:00:24]} 37. Qe5 {[%emt 0:01:00]} g6 {[%emt 0:00:50]} 38. f5 {[%emt 0:00:24]} Qc2 {[%emt 0:00:34]} 39. Rbb1 {[%emt 0:00:36]} Qd3 {[%emt 0:00:29]} 40. Qf4 {[%emt 0:00:32]} Nc3 {[%emt 0:00:26]} 41. Qg5 {[%emt 0:30:21]} Nxb1 {[%emt 0:30:25]} 42. f6 {[%emt 0:00:20]} Rd6 {[%emt 0:00:28]} 43. Qe5 {[%emt 0:00:40]} Re6 {[%emt 0:00:14]} 0-1

[Event "FIDE World Junior U20-ch Girls 2025"]
[Site "Petrovac"]
[Date "2025.03.02"]
[Round "6.20"]
[White "Tashkinova, Sofiia"]
[Black "Petricenco, Ana"]
[Result "1-0"]
[Annotator "ChessBase"]
[ECO "B90"]
[WhiteElo "2197"]
[BlackElo "1973"]
[PlyCount "71"]
[EventDate "2025.02.23"]
[EventType "swiss"]
[EventCountry "MNE"]
[SourceTitle "playchess.com"]
[Source "ChessBase"]
[SourceQuality "1"]
[TimeControl "40/5400+30:1800+30"]

1. e4 {[%emt 0:01:08]} c5 {[%emt 0:00:10]} 2. Nf3 {[%emt 0:00:13]} d6 {[%emt 0:00:08]} 3. d4 {[%emt 0:00:06]} cxd4 {[%emt 0:00:09]} 4. Nxd4 {[%emt 0:00:03]} Nf6 {[%emt 0:00:13]} 5. Nc3 {[%emt 0:00:06]} a6 {[%emt 0:00:07]} 6. Bc4 {[%emt 0:00:07]} e6 {[%emt 0:01:11]} 7. a4 {[%emt 0:00:09]} Be7 {[%emt 0:01:02]} 8. O-O {[%emt 0:00:14]} O-O {[%emt 0:00:09]} 9. Be3 {[%emt 0:00:14]} Qc7 {[%emt 0:00:16]} 10. Qe2 {[%emt 0:00:46]} Bd7 {[%emt 0:00:47]} 11. f4 {[%emt 0:05:58]} Nc6 {[%emt 0:01:31]} 12. f5 {[%emt 0:06:45]} Nxd4 {[%emt 0:25:14]} 13. Bxd4 {[%emt 0:00:18]} exf5 {[%emt 0:04:46]} 14. exf5 {[%emt 0:03:49]} Bc6 {[%emt 0:00:08]} 15. Bb3 {[%emt 0:05:13]} Rae8 {[%emt 0:09:10]} 16. Qd3 {[%emt 0:02:44]} d5 {[%emt 0:09:37]} 17. Rf3 {[%emt 0:04:05]} b6 {[%emt 0:04:05]} 18. Qxa6 {[%emt 0:11:03]} Bc5 {[%emt 0:01:41]} 19. Qd3 {[%emt 0:04:00]} Qe5 {[%emt 0:07:11]} 20. Rd1 {[%emt 0:01:37]} Ng4 {[%emt 0:01:36]} 21. g3 {[%emt 0:05:00]} Qd6 {[%emt 0:13:03]} 22. Rf4 {[%emt 0:04:02]} Ne5 {[%emt 0:03:37]} 23. Qf1 {[%emt 0:04:56]} Rd8 {[%emt 0:04:11]} 24. Qf2 {[%emt 0:02:56]} Nd7 {[%emt 0:06:37]} 25. Bxc5 {[%emt 0:01:45]} Nxc5 {[%emt 0:00:52]} 26. Bxd5 {[%emt 0:01:11]} Bxd5 {[%emt 0:00:19]} 27. Nxd5 {[%emt 0:04:47]} Qe5 {[%emt 0:01:12]} 28. Rfd4 {[%emt 0:01:00]} Qb8 {[%emt 0:01:29]} 29. f6 {[%emt 0:03:57]} g6 {[%emt 0:01:30]} 30. Qd2 {[%emt 0:00:27]} Ne6 {[%emt 0:00:12]} 31. Qh6 {[%emt 0:01:55]} Rxd5 {[%emt 0:02:33]} 32. Rxd5 {[%emt 0:00:14]} Qc7 {[%emt 0:00:09]} 33. c3 {[%emt 0:01:07]} Qc4 {[%emt 0:00:44]} 34. Rd8 {[%emt 0:02:35]} Qc5+ {[%emt 0:00:24]} 35. Kg2 {[%emt 0:00:26]} Qc6+ {[%emt 0:01:49]} 36. Kh3 {[%emt 0:00:38]} 1-0

[Event "FIDE World Junior U20-ch Girls 2025"]
[Site "Petrovac"]
[Date "2025.03.02"]
[Round "6.21"]
[White "Khuslen, Erdenebayar"]
[Black "Liuviann, Cecilia Natalie"]
[Result "0-1"]
[Annotator "ChessBase"]
[ECO "E49"]
[WhiteElo "2201"]
[BlackElo "1964"]
[PlyCount "85"]
[EventDate "2025.02.23"]
[EventType "swiss"]
[EventCountry "MNE"]
[SourceTitle "playchess.com"]
[Source "ChessBase"]
[SourceQuality "1"]
[TimeControl "40/5400+30:1800+30"]

1. d4 {[%emt 0:00:03]} Nf6 {[%emt 0:00:06]} 2. c4 {[%emt 0:00:29]} e6 {[%emt 0:00:07]} 3. Nc3 {[%emt 0:00:21]} Bb4 {[%emt 0:00:08]} 4. e3 {[%emt 0:00:33]} O-O {[%emt 0:00:07]} 5. Bd3 {[%emt 0:00:34]} d5 {[%emt 0:00:13]} 6. a3 {[%emt 0:00:30]} Bxc3+ {[%emt 0:00:09]} 7. bxc3 {[%emt 0:00:06]} dxc4 {[%emt 0:00:09]} 8. Bxc4 {[%emt 0:00:12]} c5 {[%emt 0:00:10]} 9. Nf3 {[%emt 0:00:35]} Qc7 {[%emt 0:00:17]} 10. Be2 {[%emt 0:00:12]} b6 {[%emt 0:00:16]} 11. Bb2 {[%emt 0:00:14]} Bb7 {[%emt 0:00:10]} 12. O-O {[%emt 0:00:17]} Nbd7 {[%emt 0:00:08]} 13. c4 {[%emt 0:03:43]} Rfd8 {[%emt 0:01:53]} 14. Nd2 {[%emt 0:01:59]} cxd4 {[%emt 0:02:07]} 15. exd4 {[%emt 0:01:25]} e5 {[%emt 0:00:50]} 16. d5 {[%emt 0:06:00]} b5 {[%emt 0:00:22]} 17. Qb3 {[%emt 0:11:43]} bxc4 {[%emt 0:02:12]} 18. Bxc4 {[%emt 0:01:19]} Rab8 {[%emt 0:29:44]} 19. d6 {[%emt 0:29:04]} Qxd6 {[%emt 0:00:49]} 20. Bxf7+ {[%emt 0:00:45]} Kh8 {[%emt 0:00:26]} 21. Qb4 {[%emt 0:08:01]} Nc5 {[%emt 0:08:32]} 22. Nc4 {[%emt 0:06:16]} Qc6 {[%emt 0:03:59]} 23. f3 {[%emt 0:00:34]} Nd3 {[%emt 0:02:59]} 24. Qa5 {[%emt 0:01:27]} Nxb2 {[%emt 0:17:27]} 25. Nxb2 {[%emt 0:00:05]} e4 {[%emt 0:00:15]} 26. Rac1 {[%emt 0:13:02]} Qd6 {[%emt 0:06:41]} 27. Rfd1 {[%emt 0:01:10]} Qf8 {[%emt 0:01:28]} 28. Rxd8 {[%emt 0:01:23]} Rxd8 {[%emt 0:00:11]} 29. fxe4 {[%emt 0:03:07]} Bxe4 {[%emt 0:02:15]} 30. Be6 {[%emt 0:03:28]} Re8 {[%emt 0:00:46]} 31. Qa6 {[%emt 0:04:19]} Qe7 {[%emt 0:01:56]} 32. Rc8 {[%emt 0:00:12]} h6 {[%emt 0:00:26]} 33. Rxe8+ {[%emt 0:01:51]} Nxe8 {[%emt 0:00:22]} 34. Qc8 {[%emt 0:00:59]} Bf5 {[%emt 0:01:30]} 35. h3 {[%emt 0:01:22]} Bxe6 {[%emt 0:00:09]} 36. Qc3 {[%emt 0:00:05]} Nf6 {[%emt 0:00:27]} 37. Nd3 {[%emt 0:00:13]} Bf5 {[%emt 0:01:49]} 38. Ne5 {[%emt 0:00:15]} Ne4 {[%emt 0:00:52]} 39. Qb2 {[%emt 0:00:37]} Qc7 {[%emt 0:03:13]} 40. Kh1 {[%emt 0:00:31]} Qb6 {[%emt 0:04:38]} 41. Qa1 {[%emt 0:02:52]} Qf2 {[%emt 0:03:06]} 42. Qd1 {[%emt 0:05:03]} Bxh3 {[%emt 0:05:22]} 43. Qa1 {[%emt 0:00:34]} 0-1